{"text_format":"1","workbook":"xlsx","n_sheets":6,"sheets":["注意事項","入力フォーム","申込書（印刷用）","Sheet1","T_Master","List"],"not_rendered":{"charts":0,"images":0,"macros":1,"external_links":1,"defined_names":12,"comments":0,"pivot_tables":0},"unopened":[],"bounds":{"document_bytes":16777216,"sheet_cells":100000,"rows_first":2000,"rows_last":500,"rows_between":2000,"halvings":0,"cell_chars":16384,"cell_head_chars":4096},"cells_cut":0,"cells_raw":0,"read":"whole","date_system":"1900"}

{"sheet":"注意事項","index":0,"n_rows":40,"n_cols":10,"rows_kept":40,"cut":false,"hidden":false,"merged":[[1,1,1,4],[1,6,1,9],[2,1,38,4],[7,6,7,9],[8,6,8,9],[9,8,9,9],[10,8,10,9],[11,8,11,9],[12,8,12,9],[13,8,13,9],[14,8,14,9],[15,8,15,9],[16,8,16,9],[17,7,18,7],[17,8,17,9],[18,8,18,9],[19,8,19,9],[20,8,20,9],[21,8,21,9],[22,8,22,9],[23,8,23,9],[24,8,24,9],[25,8,25,9],[38,8,38,9],[36,8,37,9],[50,1,53,4],[39,8,39,9],[26,8,26,9],[27,8,27,9],[28,8,28,9],[29,8,29,9],[30,8,30,9],[31,8,31,9],[54,1,56,4],[57,1,60,4],[62,1,65,4],[32,8,32,9],[33,8,33,9],[34,8,34,9],[35,8,35,9],[39,1,39,4],[36,6,37,6],[36,7,37,7]]}
[null,null,"※注意事項等をよく読んでいただいてから入力フォームにお進みください。"]
[null,"ご見学の際のご注意事項",null,null,null,null,"院内合同カンファレンス情報"]
[null,"１．受入期間\n随時受付しております。（土日・祝日・年末年始（12/29～1/3）を除く）\n・１日あたり１診療科でお願いします。\n・見学希望者の受入状況や診療科の事情により調整する場合があります。\n・１つの診療科を複数名で見学いただく場合があります。\n（右のカンファレンス・診療科情報をご参照ください）\n\n２．受入体制\nアカデミックセンターが見学の窓口となり，見学の受付から各診療科との調整，当日の診療科ご案内まで行います。\n・見学初日は，8：00～8：30頃にご来院いただきます。\n（診療科によってはご案内時間が早くなる場合がありますのでご了承ください。）\n\n３．見学時の持ち物\n名札，スクラブ・白衣・ケーシー等，聴診器，上履き，医師免許証の写し。\n\n４．お食事について\n昼食はお弁当をご用意しております。なお，食物アレルギーの対応はできかねますので，ご自身でご準備される際にはあらかじめお知らせください。\n※朝食・夕食は自己負担でお願いいたします。\n\n５．宿舎について\n当院近隣の宿泊施設（徒歩約10分）をご用意いたします。冷蔵庫，電子レンジ，電気ケトル，テレビ，ドライヤー等はございます。タオル・洗面用具（シャンプー等）はご持参ください。\n・インターネット環境はございません。\n・状況により前泊・後泊の希望にも対応いたしますので，ご相談ください。\n\n６．その他\n・ＧＷ・お盆・年末年始等の前後の期間は，診療科により手術や症例などが少ない\n　場合があります。\n\n【病院見学申し込み方法】\n【病院見学申込入力フォーム】の必要項目を入力のうえ，２週間前までに下記メー\n　ルアドレスに送信してください。\n※日程調整後，担当者からメールにてご連絡いたします。お申し込み後１週間以内\n　にメールが届かない場合は下記受付窓口までご一報ください。\n",null,null,null,null,"※状況により変更の場合もあります。"]
[null,null,null,null,null,null,"名称","開催日","時間","摘要"]
[null,null,null,null,null,null,"キャンサーボード","毎週（月）","16：30～","(月)が休日の場合\nは翌日"]
[null,null,null,null,null,null,"臨床病理カンファレンス","年 ７ 回","17：30～"]
[]
[null,null,null,null,null,null,"診療科情報（参考）"]
[null,null,null,null,null,null,"※各診療科の状況により変更となる場合があります。"]
[null,null,null,null,null,null,"診療科","予定","備考"]
[null,null,null,null,null,null,"脳神経内科"]
[null,null,null,null,null,null,"血液内科"]
[null,null,null,null,null,null,"腎臓内分泌内科(腎臓)","火-腎生検"]
[null,null,null,null,null,null,"糖尿病・代謝内科"]
[null,null,null,null,null,null,"呼吸器内科",null,"集合時間 8：10 "]
[null,null,null,null,null,null,"リウマチ科","月水金-外来日"]
[null,null,null,null,null,null,"腫瘍内科"]
[null,null,null,null,null,null,"消化器内科（内視鏡検査）","月水金-内視鏡検査日/火木-内視鏡検査治療日木曜は治療がない場合あり。"]
[null,null,null,null,null,null,"消化器内科（内視鏡検査・治療）"]
[null,null,null,null,null,null,"循環器内科","月水金-心カテ日","月金-集合時間7：30 ※前泊をお勧めします。"]
[null,null,null,null,null,null,"リハビリテーション科"]
[null,null,null,null,null,null,"小 児 科　",null,"白衣等半袖タイプ指定"]
[null,null,null,null,null,null,"皮 膚 科","水-手術日"]
[null,null,null,null,null,null,"外    科"]
[null,null,null,null,null,null,"呼吸器外科","月水-手術日"]
[null,null,null,null,null,null,"心臓血管外科","火木-手術日　　","集合時間 7：10 ※前泊をお勧めします。"]
[null,null,null,null,null,null,"脳神経外科","緊急手術が入る場合あり。","火・水をお勧めします。"]
[null,null,null,null,null,null,"泌尿器科","月水木-手術日"]
[null,null,null,null,null,null,"整形外科"]
[null,null,null,null,null,null,"産科・婦人科","月火金-手術日"]
[null,null,null,null,null,null,"耳鼻咽喉科","火水金-手術日"]
[null,null,null,null,null,null,"眼  　科","月木-手術日"]
[null,null,null,null,null,null,"麻 酔 科",null,"集合時間7：30 ※前泊をお勧めします。"]
[null,null,null,null,null,null,"形成外科","月-午後手術、火木金-午前手術"]
[null,null,null,null,null,null,"放射線診断科"]
[null,null,null,null,null,null,"病理診断科"]
[null,null,null,null,null,null,"救急診療科",null,"見学当日の救急車の搬送数によって空き時間が長くなる場合があります。"]
[]
[]
[null,"\n\n\n【受付窓口】\n　大崎市民病院 アカデミックセンター 臨床教育学術管理室\n　　　TEL：0229-23-3311（内3305，3306）\n 　　　FAX：0229-23-5380\n　　　メールアドレス：kensyu-och@h-osaki.jp",null,null,null,null,"救 急(夜間)　","当日の見学科の状況に合わせてご案内しております。\n初期研修医の補助夜勤体制は曜日により異なります。\n　月・金：内科系２名\n　　　　　外科系１名\n　火･水･木：内科系及び外科系\n　　　　　（救急科当直）3名","日中の見学終了後から23：00頃までを目安にご見学いただいております。"]

{"sheet":"入力フォーム","index":1,"n_rows":73,"n_cols":10,"rows_kept":73,"cut":false,"hidden":false,"merged":[[69,4,70,10],[46,7,46,8],[48,7,48,8],[59,4,59,6],[57,4,57,6],[63,4,63,10],[24,4,24,10],[48,4,48,5],[62,4,62,10],[61,4,61,6],[34,2,34,4],[46,4,46,5],[50,4,50,5],[50,7,50,8],[42,4,42,8],[55,4,55,6],[30,5,30,6],[72,0,72,11],[2,5,2,7],[2,2,2,4],[32,5,32,6],[18,4,18,6],[26,4,26,8],[8,4,8,6],[5,2,5,12],[10,4,10,6],[28,4,28,8],[53,4,53,6],[38,4,38,8],[40,4,40,8],[12,4,12,6],[36,4,36,8],[39,4,39,12]]}
["病院見学",null,"【病院見学申込入力フォーム】"]
[]
[null,null,"下記の各項目に入力の上，",null,null,"kensyu-och@h-osaki.jp",null,null,"までメール添付で送信してください。"]
[null,null,"　（事情によりメール添付送信が出来ない場合は，Sheet”申込書（印刷用）”を印刷してファックスでお送りください。）"]
[]
[null,null,"※セルを移動するには，入力確定後にマウスポインタで入力セルをクリックするか、Tabキーまたは→キーを押します。\n（Entrerキーでは順番に全項目に移動しませんのでご注意下さい。）"]
[]
[]
[null,null,"申込日",null,null,null,null,"※入力例 2022/10/1　（半角）"]
[]
[null,"・","ふりがな",null,null,null,null,"※入力例　おおさき　たろう　"]
[]
[null,"・","氏名",null,null,null,null,"※入力例　大崎　太郎"]
[]
[null,"・","年齢",null,null,"才 ※半角数字のみ"]
[]
[null,"・","性別",null,null,"※右の▼をクリックしてリストから選択"]
[]
[null,"・","病院名"]
[]
[null,"・","研修年次",null,null,"年次　※半角数字のみ"]
[]
[null,"・","郵便番号",null,null,"※入力例 989-6183　（半角）"]
[]
[null,"・","ご住所"]
[]
[null,"・","出身地",null,null,null,null,null,null,"※入力例　宮城県大崎市"]
[]
[null,"・","出身大学"]
[]
[null,"・","電話番号",null,"（自　宅）",null,null,null,"　　　　　　※入力例 0229-23-3311　（半角）"]
[]
[null,null,null,null,"（携　帯）",null,null,null,"　　　　　　※入力例 090-1111-1111　（半角）"]
[]
[null,null,"希望連絡時間帯",null,null,null,"～",null,"※入力例 13:00　（半角　24時間表記）"]
[]
[null,"・","趣味"]
[]
[null,"・","クラブ"]
[null,"・","Eメールアドレス",null,"※通常、お申し込みから１週間以内にメールにてご連絡をしております。\n迷惑メールフォルダに届いてしまう場合がありますで、念のためご確認いただけますと幸いです。"]
[null,null,"（パソコン）"]
[]
[null,null,"（携　　帯）"]
[]
[null,"・","ご希望日",null,"※入力例 2022/10/1　（半角）"]
[]
[null,null,"第１希望",null,null,null,"～"]
[]
[null,null,"第２希望",null,null,null,"～"]
[]
[null,null,"第３希望",null,null,null,"～"]
[]
[null,"・","見学ご希望科",null,"※1日あたり1科でのご見学にて調整しております。"]
[null,null,"第１希望",null,null,null,null,"希望日数：",null,"日"]
[]
[null,null,"第２希望",null,null,null,null,"希望日数：",null,"日"]
[]
[null,null,"第３希望",null,null,null,null,"希望日数：",null,"日"]
[]
[null,null,"第４希望",null,null,null,null,"希望日数：",null,"日"]
[]
[null,null,"第５希望",null,null,null,null,"希望日数：",null,"日"]
[null,null,null,null,"※救急のご見学は、当日の搬送数によって空き時間が長くなる可能性があります。\n※救急（夜間）は、日中の見学終了後～ご希望の時間までご見学いただいております。"]
[null,"・","宿泊施設のご利用",null,"　2日以上のご見学の際には当院の宿泊施設をご提供しています。※インターネット環境はございません。"]
[null,null,null,null,null,"ご希望の方はチェックしてください。→",null,null,null,false]
[]
[]
[null,null,"駐車場の利用",null,null,"ご希望の方はチェックしてください。→",null,null,null,false]
[]
[null,"・","見学時のご希望等"]
[null,null,"（見学内容、興味のある症例、前泊・後泊の希望等ありましたらご記入ください）"]
[]
["※食物アレルギーをお持ちの方へ\n　病院見学者に昼食をご準備しておりますが，誠に申し訳ございませんが， 食物アレルギーの対応にはお応えできかねますので，\n　昼食等をご自身でご準備される際には，あらかじめお知らせください。"]

{"sheet":"申込書（印刷用）","index":2,"n_rows":39,"n_cols":30,"rows_kept":39,"cut":false,"hidden":false,"merged":[[0,24,0,27],[25,13,25,17],[25,19,25,20],[26,19,26,20],[24,13,24,17],[24,21,24,23],[25,21,25,23],[24,19,24,20],[22,21,22,27],[20,22,20,24],[2,1,2,27],[9,1,10,1],[3,1,3,3],[3,4,3,11],[5,2,5,10],[5,12,5,26],[16,13,16,18],[16,21,16,27],[17,15,17,24],[12,12,12,26],[13,2,13,10],[13,12,13,13],[14,12,14,13],[19,22,19,24],[19,28,19,32],[20,28,20,32],[21,28,21,32],[23,28,27,32],[22,28,22,32],[6,2,6,10],[7,12,7,14],[23,13,23,17],[22,13,22,20],[23,19,23,20],[18,2,18,10],[10,12,10,26],[9,2,10,10],[9,11,10,11],[7,17,7,19],[8,12,8,19],[9,13,9,16],[6,12,6,26],[7,2,7,10],[8,2,8,10],[16,19,16,20],[15,12,15,14],[15,15,15,16],[15,18,15,19],[39,14,39,15],[35,14,35,15],[36,14,36,15],[37,14,37,15],[38,14,38,15],[26,13,26,17],[11,2,11,10],[16,2,16,10],[22,1,27,1],[25,2,25,11],[20,3,20,10],[21,3,21,10],[27,2,27,11],[19,3,19,10],[23,3,23,9],[12,2,12,10],[17,2,17,10],[15,2,15,10],[13,14,13,26],[19,1,21,2],[35,3,35,11],[11,12,11,26],[14,14,14,26],[17,12,17,14],[36,3,36,11],[31,13,31,26],[20,18,20,20],[35,17,38,26],[21,22,21,24],[20,14,20,16],[38,3,38,11],[34,2,34,10],[33,3,33,4],[37,3,37,11],[27,13,27,17],[27,19,27,20],[31,2,31,10],[29,2,29,10],[29,13,29,26],[23,25,23,27],[24,25,24,27],[25,25,25,27],[26,25,26,27],[27,25,27,27],[28,2,28,10],[28,13,28,26],[27,21,27,23],[14,2,14,10],[24,2,24,11],[26,21,26,23],[23,21,23,23],[18,12,18,14],[19,18,19,20],[18,15,18,24],[21,18,21,20],[21,14,21,16],[19,14,19,16]]}
[null,null,null,null,null,null,null,null,null,null,null,null,null,null,null,null,null,null,null,null,null,null,null,null,{"$f":"IF('申込書（印刷用）'!AC1=TRUE,\"インポート済\",IF(SUM('申込書（印刷用）'!V24:V28)>0,\"インポート可\",\"インポート不可\"))","v":"インポート不可"},null,null,null,false,{"$f":"IF(AA11=\"インポート可\",\"←インポート後チェック（事務局用）\",\"←事務局用\")","v":"←事務局用"}]
[]
[null,"病院見学申込書"]
[null,"申込日：",null,null,{"$f":"IF(入力フォーム!E9=\"\",\"\",入力フォーム!E9)","v":""}]
[]
[null,null,"ふりがな",null,null,null,null,null,null,null,null,null,{"$f":"IF(入力フォーム!E11=\"\",\"\",入力フォーム!E11)","v":""}]
[null,null,"氏名",null,null,null,null,null,null,null,null,null,{"$f":"IF(入力フォーム!E13=\"\",\"\",入力フォーム!E13)","v":""}]
[null,null,"年齢及び性別",null,null,null,null,null,null,null,null,null,{"$f":"IF(入力フォーム!E15=\"\",\"\",入力フォーム!E15)","v":""},null,null,"才",null,{"$f":"IF(入力フォーム!E17=\"\",\"\",入力フォーム!E17)","v":""}]
[null,null,"病院名及び研修年次",null,null,null,null,null,null,null,null,null,{"$f":"IF(入力フォーム!E19=\"\",\"\",入力フォーム!E19)","v":""},null,null,null,null,null,null,null,{"$f":"IF(入力フォーム!E21=\"\",\"\",入力フォーム!E21)","v":""},"年"]
[null,null,"現住所",null,null,null,null,null,null,null,null,null,"〒",{"$f":"IF(入力フォーム!E23=\"\",\"\",入力フォーム!E23)","v":""}]
[null,null,null,null,null,null,null,null,null,null,null,null,{"$f":"IF(入力フォーム!E25=\"\",\"\",入力フォーム!E25)","v":""}]
[null,null,"出　　　身　　　地",null,null,null,null,null,null,null,null,null,{"$f":"IF(入力フォーム!E27=\"\",\"\",入力フォーム!E27)","v":""}]
[null,null,"出身大学",null,null,null,null,null,null,null,null,null,{"$f":"IF(入力フォーム!E29=\"\",\"\",入力フォーム!E29)","v":""}]
[null,null,"電　 話　 番　 号",null,null,null,null,null,null,null,null,null,"　自  宅",null,{"$f":"IF(入力フォーム!F31=\"\",\"\",入力フォーム!F31)","v":""}]
[null,null,"※希望連絡先にチェック",null,null,null,null,null,null,null,null,null,"　携  帯",null,{"$f":"IF(入力フォーム!F33=\"\",\"\",入力フォーム!F33)","v":""}]
[null,null,null,null,null,null,null,null,null,null,null,null,"希望連絡時間帯",null,null,{"$f":"IF(入力フォーム!F35=\"\",\"\",入力フォーム!F35)","v":""},null,"～",{"$f":"IF(入力フォーム!H35=\"\",\"\",入力フォーム!H35)","v":""}]
[null,null,"趣味及びクラブ",null,null,null,null,null,null,null,null,null,"趣味：",{"$f":"IF(入力フォーム!E37=\"\",\"\",入力フォーム!E37)","v":""},null,null,null,null,null,"クラブ：",null,{"$f":"IF(入力フォーム!E39=\"\",\"\",入力フォーム!E39)","v":""}]
[null,null,"Eメールアドレス",null,null,null,null,null,null,null,null,null,"パソコン  ：",null,null,{"$f":"IF(入力フォーム!E41=\"\",\"\",入力フォーム!E41)","v":""}]
[null,null,"※希望送信先にチェック",null,null,null,null,null,null,null,null,null,"携　　帯  ：",null,null,{"$f":"IF(入力フォーム!E43=\"\",\"\",入力フォーム!E43)","v":""}]
[null,"希望日",null,"第１希望",null,null,null,null,null,null,null,null,false,null,{"$f":"IF(入力フォーム!E47=\"\",\"\",入力フォーム!E47)","v":""},null,null,{"$f":"IF(OR(O20=\"\",S20=\"\"),\"\",\"～\")","v":""},{"$f":"IF(入力フォーム!H47=\"\",\"\",入力フォーム!H47)","v":""},null,null,null,{"$f":"IF(O20=\"\",\"\",IF(OR(O20=S20,S20=\"\"),1,S20-O20+1))","v":""},null,null,null,null,null,{"$f":"IF(AND(M20=TRUE,SUM($V$24:$W$28)=0),\"下記見学希望科の担当及び見学日を入力してください。\",\"\")","v":""}]
[null,null,null,"第２希望",null,null,null,null,null,null,null,null,false,null,{"$f":"IF(入力フォーム!E49=\"\",\"\",入力フォーム!E49)","v":""},null,null,{"$f":"IF(OR(O21=\"\",S21=\"\"),\"\",\"～\")","v":""},{"$f":"IF(入力フォーム!H49=\"\",\"\",入力フォーム!H49)","v":""},null,null,null,{"$f":"IF(O21=\"\",\"\",IF(OR(O21=S21,S21=\"\"),1,S21-O21+1))","v":""},null,null,null,null,null,{"$f":"IF(AND(M21=TRUE,SUM($W$24:$AB$28)=0),\"下記見学希望科の担当及び見学日を入力してください。\",\"\")","v":""}]
[null,null,null,"第３希望",null,null,null,null,null,null,null,null,false,null,{"$f":"IF(入力フォーム!E51=\"\",\"\",入力フォーム!E51)","v":""},null,null,{"$f":"IF(OR(O22=\"\",S22=\"\"),\"\",\"～\")","v":""},{"$f":"IF(入力フォーム!H51=\"\",\"\",入力フォーム!H51)","v":""},null,null,null,{"$f":"IF(O22=\"\",\"\",IF(OR(O22=S22,S22=\"\"),1,S22-O22+1))","v":""},null,null,null,null,null,{"$f":"IF(AND(M22=TRUE,SUM($W$24:$AB$28)=0),\"下記見学希望科の担当及び見学日を入力してください。\",\"\")","v":""}]
[null,null,null,null,null,null,null,null,null,null,null,null,"希望\n順位","希望見学科（希望日数）　※担当（指導医）",null,null,null,null,null,null,null,"見 学 日　※事務記入"]
[null,null,null,"見学希望科",null,null,null,null,null,null,null,null,1,{"$f":"IF(入力フォーム!E54=\"\",\"\",IF(入力フォーム!E54=\"救 急(夜間のみ)\",入力フォーム!E54,入力フォーム!E54&\"  (\"&入力フォーム!I54&\"日)\"))","v":""},null,null,null,null,{"$f":"IF(N24=\"\",\"\",\"担当：\")","v":""},null,null,null,null,null,{"$f":"IF(V24=\"\",\"\",IF(入力フォーム!I54>1,\"～\",\"\"))","v":""},{"$f":"IF(V24=\"\",\"\",IF(入力フォーム!I54>1,V24+1,\"\"))","v":""},null,null,{"$f":"IF(AND(B1=\"\",OR(V24<>\"\",V25<>\"\",V26<>\"\",V27<>\"\",V28<>\"\")),\"日程調整後，左表の「見学日」に日付を入力し，上のチェックが「インポート可」となったら上書き保存。その後Accessでインポートしてください。\",\"\")","v":""}]
[null,null,"※見学は1日1科で調整",null,null,null,null,null,null,null,null,null,2,{"$f":"IF(入力フォーム!E56=\"\",\"\",IF(入力フォーム!E56=\"救 急(夜間のみ)\",入力フォーム!E56,入力フォーム!E56&\"  (\"&入力フォーム!I56&\"日)\"))","v":""},null,null,null,null,{"$f":"IF(N25=\"\",\"\",\"担当：\")","v":""},null,null,null,null,null,{"$f":"IF(V25=\"\",\"\",IF(入力フォーム!I56>1,\"～\",\"\"))","v":""},{"$f":"IF(V25=\"\",\"\",IF(入力フォーム!I56>1,V25+1,\"\"))","v":""}]
[null,null,null,null,null,null,null,null,null,null,null,null,3,{"$f":"IF(入力フォーム!E58=\"\",\"\",IF(入力フォーム!E58=\"救 急(夜間のみ)\",入力フォーム!E58,入力フォーム!E58&\"  (\"&入力フォーム!I58&\"日)\"))","v":""},null,null,null,null,{"$f":"IF(N26=\"\",\"\",\"担当：\")","v":""},null,null,null,null,null,{"$f":"IF(V26=\"\",\"\",IF(入力フォーム!I58>1,\"～\",\"\"))","v":""},{"$f":"IF(V26=\"\",\"\",IF(入力フォーム!I58>1,V26+1,\"\"))","v":""}]
[null,null,null,null,null,null,null,null,null,null,null,null,4,{"$f":"IF(入力フォーム!E60=\"\",\"\",IF(入力フォーム!E60=\"救 急(夜間のみ)\",入力フォーム!E60,入力フォーム!E60&\"  (\"&入力フォーム!I60&\"日)\"))","v":""},null,null,null,null,{"$f":"IF(N27=\"\",\"\",\"担当：\")","v":""},null,null,null,null,null,{"$f":"IF(V27=\"\",\"\",IF(入力フォーム!I60>1,\"～\",\"\"))","v":""},{"$f":"IF(V27=\"\",\"\",IF(入力フォーム!I60>1,V27+1,\"\"))","v":""}]
[null,null,null,null,null,null,null,null,null,null,null,null,5,{"$f":"IF(入力フォーム!E62=\"\",\"\",IF(入力フォーム!E62=\"救 急(夜間のみ)\",入力フォーム!E62,入力フォーム!E62&\"  (\"&入力フォーム!I62&\"日)\"))","v":""},null,null,null,null,{"$f":"IF(N28=\"\",\"\",\"担当：\")","v":""},null,null,null,null,null,{"$f":"IF(V28=\"\",\"\",IF(入力フォーム!I62>1,\"～\",\"\"))","v":""},{"$f":"IF(V28=\"\",\"\",IF(入力フォーム!I62>1,V28+1,\"\"))","v":""}]
[null,null,"宿泊施設の利用",null,null,null,null,null,null,null,null,null,null,{"$f":"IF(入力フォーム!J65=TRUE,\"※宿泊施設の利用を希望します。\",\"\")","v":""}]
[null,null,"駐車場の利用",null,null,null,null,null,null,null,null,null,null,{"$f":"IF(入力フォーム!J68=TRUE,\"※駐車場の利用を希望します。\",\"\")","v":""}]
[]
[null,null,"ご連絡事項や見学時のご希望があればご記入ください。",null,null,null,null,null,null,null,null,null,null,{"$f":"IF(入力フォーム!E70=\"\",\"\",入力フォーム!E70)","v":""}]
[]
[]
[null,null,"事務記入欄",null,null,null,null,null,null,null,null,null,null,null,null,null,"　備　　考"]
[null,null,null,"・見学科日程調整"]
[null,null,null,"・入力（管理SYS）"]
[null,null,null,"・入力（予定表）"]
[null,null,null,"・見学者への日程連絡"]

{"sheet":"Sheet1","index":3,"n_rows":0,"n_cols":0,"rows_kept":0,"cut":false,"hidden":false,"merged":[]}

{"sheet":"T_Master","index":4,"n_rows":2,"n_cols":31,"rows_kept":2,"cut":false,"hidden":false,"merged":[]}
["区分","説明会区分","開始年月日","終了年月日","氏名","ふりがな","年齢","性別","大学名","学年","〒","住所","出身地","出身校","電話","趣味","クラブ","E-mail_1","E-mail_2","診療科1","診療科2","診療科3","診療科4","診療科5","東北大学医学修練","アンケート回答","アンケート無回答","評価票印刷","アンケート印刷","摘要","キャンセル"]
[{"$f":"入力フォーム!A1","v":"病院見学"},null,{"$f":"IF(SUM('申込書（印刷用）'!V24:Z28)=0,\" \",MIN('申込書（印刷用）'!V24:Z28))","v":" "},{"$f":"IF(SUM('申込書（印刷用）'!V24:Z28)=0,\" \",MAX('申込書（印刷用）'!V24:Z28))","v":" "},{"$f":"IF(入力フォーム!E13=\"\",\" \",入力フォーム!E13)","v":" "},{"$f":"IF(入力フォーム!E11=\"\",\" \",入力フォーム!E11)","v":" "},{"$f":"IF(入力フォーム!E15=\"\",\" \",入力フォーム!E15)","v":" "},{"$f":"IF(入力フォーム!E17=\"\",\" \",入力フォーム!E17)","v":" "},{"$f":"IF(入力フォーム!E19=\"\",\" \",入力フォーム!E19)","v":" "},{"$f":"IF(入力フォーム!E21=\"\",\" \",入力フォーム!E21)","v":" "},{"$f":"IF(入力フォーム!E23=\"\",\" \",入力フォーム!E23)","v":" "},{"$f":"IF(入力フォーム!E25=\"\",\" \",入力フォーム!E25)","v":" "},{"$f":"IF(入力フォーム!E27=\"\",\" \",入力フォーム!E27)","v":" "},{"$f":"IF(入力フォーム!E29=\"\",\" \",入力フォーム!E29)","v":" "},{"$f":"IF(入力フォーム!H33=TRUE,入力フォーム!F33,IF(入力フォーム!H31=TRUE,入力フォーム!F31,\" \"))","v":" "},{"$f":"IF(入力フォーム!E37=\"\",\" \",入力フォーム!E37)","v":" "},{"$f":"IF(入力フォーム!E39=\"\",\" \",入力フォーム!E39)","v":" "},{"$f":"IF(入力フォーム!E41=\"\",\" \",入力フォーム!E41)","v":" "},{"$f":"IF(入力フォーム!E43=\"\",\" \",入力フォーム!E43)","v":" "},{"$f":"IF(入力フォーム!E54=\"\",\" \",入力フォーム!E54)","v":" "},{"$f":"IF(入力フォーム!E56=\"\",\" \",入力フォーム!E56)","v":" "},{"$f":"IF(入力フォーム!E58=\"\",\" \",入力フォーム!E58)","v":" "},{"$f":"IF(入力フォーム!E60=\"\",\" \",入力フォーム!E60)","v":" "},{"$f":"IF(入力フォーム!E62=\"\",\" \",入力フォーム!E62)","v":" "},null,false,false,true,true,{"$f":"IF(入力フォーム!E70=\"\",\" \",入力フォーム!E70)","v":" "},false]

{"sheet":"List","index":5,"n_rows":86,"n_cols":5,"rows_kept":86,"cut":false,"hidden":false,"merged":[]}
[]
[]
[]
[null,"性別","大学名","科名","希望科判定"]
[]
[null,"男性","北海道大学医学部","脳神経内科","可"]
[null,"女性","札幌医科大学医学部","血液内科","不可"]
[null,null,"旭川医科大学医学部","腎臓・内分泌内科","なし"]
[null,null,"弘前大学医学部","糖尿病・代謝内科"]
[null,null,"秋田大学医学部","呼吸器内科"]
[null,null,"岩手医科大学医学部","リウマチ科"]
[null,null,"山形大学医学部","腫瘍内科"]
[null,null,"東北大学医学部","消化器内科（内視鏡検査）"]
[null,null,"東北医科薬科大学医学部","消化器内科（内視鏡検査・治療）"]
[null,null,"福島県立医科大学医学部","循環器内科"]
[null,null,"新潟大学医学部","リハビリテーション科"]
[null,null,"東京慈恵会医科大学医学部","小 児 科"]
[null,null,"東京大学医学部","皮 膚 科"]
[null,null,"順天堂大学医学部","外    科"]
[null,null,"東京医科歯科大学医学部","呼吸器外科"]
[null,null,"日本医科大学医学部","心臓血管外科"]
[null,null,"昭和大学医学部","脳神経外科"]
[null,null,"東邦大学医学部","泌尿器科"]
[null,null,"東京医科大学医学部","整形外科"]
[null,null,"慶應義塾大学医学部","産婦人科"]
[null,null,"東京女子医科大学医学部","耳鼻咽喉科"]
[null,null,"帝京大学医学部","眼  　科"]
[null,null,"日本大学医学部","麻 酔 科"]
[null,null,"杏林大学医学部","形成外科"]
[null,null,"聖マリアンナ医科大学医学部","放射線診断科"]
[null,null,"北里大学医学部","病理診断科"]
[null,null,"横浜市立大学医学部","救急診療科"]
[null,null,"東海大学医学部","救 急(夜間)　※日中の見学終了後～"]
[null,null,"千葉大学医学部","その他（下記希望欄に記載ください）"]
[null,null,"筑波大学医学専門学群"]
[null,null,"獨協医科大学医学部"]
[null,null,"自治医科大学医学部"]
[null,null,"埼玉医科大学医学部"]
[null,null,"防衛医科大学校"]
[null,null,"群馬大学医学部"]
[null,null,"信州大学医学部"]
[null,null,"山梨大学医学部"]
[null,null,"浜松医科大学医学部"]
[null,null,"名古屋大学医学部"]
[null,null,"名古屋市立大学医学部"]
[null,null,"藤田保健衛生大学医学部"]
[null,null,"金沢医科大学医学部"]
[null,null,"金沢大学医学部"]
[null,null,"愛知医科大学医学部"]
[null,null,"岐阜大学医学部"]
[null,null,"三重大学医学部"]
[null,null,"滋賀医科大学医学部"]
[null,null,"大阪市立大学医学部"]
[null,null,"大阪大学医学部"]
[null,null,"大阪医科大学医学部"]
[null,null,"関西医科大学医学部"]
[null,null,"近畿大学医学部"]
[null,null,"京都府立医科大学医学部"]
[null,null,"京都大学医学部"]
[null,null,"奈良県立医科大学医学部"]
[null,null,"和歌山県立医科大学医学部"]
[null,null,"神戸大学医学部"]
[null,null,"兵庫医科大学医学部"]
[null,null,"鳥取大学医学部"]
[null,null,"島根医科大学医学部"]
[null,null,"岡山大学医学部"]
[null,null,"川崎医科大学医学部"]
[null,null,"広島大学医学部"]
[null,null,"山口大学医学部"]
[null,null,"香川大学医学部"]
[null,null,"徳島大学医学部"]
[null,null,"高知大学医学部"]
[null,null,"愛媛大学医学部"]
[null,null,"産業医科大学医学部"]
[null,null,"九州大学医学部"]
[null,null,"福岡大学医学部"]
[null,null,"久留米大学医学部"]
[null,null,"佐賀大学医学部"]
[null,null,"長崎大学医学部"]
[null,null,"熊本大学医学部"]
[null,null,"大分大学医学部"]
[null,null,"宮崎大学医学部"]
[null,null,"鹿児島大学医学部"]
[null,null,"琉球大学医学部"]
[null,null,"福井大学医学部"]
[null,null,"富山大学医学部"]